bitfinex/quotes_SOLUSD_20250621
["timestamp","ask_amount","ask_price","bid_price","bid_amount"]
[1750543490251,18.85097576,133.57,133.55,7.48762436]
[1750543490554,0.72,133.56,133.51,35.27905364]
[1750543490849,18.85097576,133.55,133.52,7.48951467]
[1750543491423,18.85097576,133.54,133.52,7.48951467]
[1750543491630,19.57097576,133.53,133.51,10.1]
[1750543491852,18.85097576,133.52,133.51,10.1]
[1750543492951,0.72,133.51,133.46,7.49288176]
[1750543493181,18.85097576,133.47,133.46,7.49288176]
[1750543493329,0.72,133.5,133.46,7.49288176]
[1750543493534,18.85097576,133.48,133.46,7.49288176]
[1750543494345,18.85097576,133.49,133.46,7.49288176]
[1750543494526,26.72,133.51,133.46,7.49288176]
[1750543494730,18.85097576,133.49,133.46,7.49288176]
[1750543494946,18.85097576,133.48,133.46,7.49288176]
[1750543495337,18.85097576,133.5,133.46,26.22508616]
[1750543495764,0.72,133.54,133.47,18.85097576]
[1750543496062,0.72,133.54,133.48,19.53097576]
[1750543496375,26.0,133.55,133.48,18.85097576]
[1750543496670,18.85097576,133.55,133.5,19.53097576]
[1750543496830,0.72,133.6,133.52,18.85097576]
[1750543497033,1.6260325,133.61,133.55,26.33880803]
[1750543497279,18.85097576,133.59,133.55,45.05838871]
[1750543497565,20.47700826,133.61,133.56,19.53097576]
[1750543497926,20.47700826,133.61,133.56,0.68]
[1750543498162,18.85097576,133.6,133.55,45.05838871]
[1750543498363,18.85097576,133.59,133.55,45.05838871]
[1750543498669,18.85097576,133.57,133.55,7.48783227]
[1750543498834,18.64964886,133.58,133.52,18.72281153]
[1750543499033,18.85097576,133.55,133.52,26.2123262]
[1750543499370,18.64964886,133.58,133.52,7.48951467]
[1750543499673,18.85097576,133.55,133.52,7.48951467]
[1750543500534,18.85097576,133.54,133.52,7.48951467]
[1750543500857,18.85097576,133.55,133.52,7.48951467]
[1750543501063,18.85097576,133.54,133.52,7.48951467]
[1750543501229,0.72,133.57,133.52,7.48951467]
[1750543501673,18.85097576,133.55,133.52,7.48951467]
[1750543501830,0.72,133.57,133.52,7.48951467]
[1750543502029,18.85097576,133.56,133.52,45.06427712]
[1750543502235,18.85097576,133.57,133.52,45.74427712]
[1750543502834,0.72,133.6,133.54,18.85097576]
[1750543503038,1.6260325,133.61,133.54,18.85097576]
[1750543503231,18.85097576,133.59,133.55,26.20741295]
[1750543503759,18.85097576,133.59,133.55,45.73838871]
[1750543503956,1.6260325,133.61,133.55,45.73838871]
[1750543503957,18.85097576,133.6,133.55,45.73838871]
[1750543504164,18.85097576,133.59,133.55,25.37696563]
[1750543504379,18.85097576,133.59,133.55,44.22794139]
[1750543504577,18.85097576,133.6,133.56,18.85097576]
[1750543504788,18.85097576,133.6,133.56,19.53097576]
[1750543505289,1.6260325,133.61,133.57,51.97886455]
[1750543505492,1.6260325,133.61,133.57,51.29886455]
[1750543505493,20.47700826,133.61,133.57,51.29886455]
[1750543505782,18.85097576,133.59,133.57,7.48671108]
[1750543505961,1.6260325,133.61,133.56,33.48706586]
[1750543505962,18.85097576,133.58,133.56,33.48706586]
[1750543506293,18.85097576,133.57,133.56,33.48706586]
[1750543506586,18.85097576,133.57,133.56,7.48706586]
[1750543506788,18.85097576,133.57,133.52,17.58949343]
[1750543506950,18.85097576,133.53,133.52,17.58949343]
[1750543507298,18.85097576,133.54,133.52,17.58949343]
[1750543508551,0.72,133.56,133.52,17.58949343]
[1750543508552,18.85097576,133.53,133.52,17.58949343]
[1750543508751,18.64964886,133.58,133.52,17.58949343]
[1750543508963,18.85097576,133.55,133.52,17.58949343]
[1750543509170,18.85097576,133.57,133.54,26.0]
[1750543509350,18.85097576,133.58,133.54,44.85097576]
[1750543509553,18.85097576,133.59,133.54,45.53097576]
[1750543510979,18.85097576,133.59,133.55,26.0]
[1750543511163,18.85097576,133.56,133.52,17.58949343]
[1750543511870,0.72,133.59,133.52,17.58949343]
[1750543512076,18.85097576,133.55,133.52,17.58949343]
[1750543512264,18.85097576,133.56,133.52,17.58949343]
[1750543512964,18.85097576,133.55,133.52,17.58949343]
[1750543513166,18.85097576,133.56,133.52,17.58949343]
[1750543513379,18.85097576,133.56,133.52,36.44046919]
[1750543514583,18.85097576,133.56,133.52,55.16425588]
[1750543514883,18.85097576,133.56,133.52,36.31328012]
[1750543516260,0.72,133.59,133.52,36.31328012]
[1750543516488,18.85097576,133.56,133.52,55.16425588]
[1750543516690,18.85097576,133.56,133.52,55.86425588]
[1750543516981,18.85097576,133.56,133.52,36.31328012]
[1750543518290,0.72,133.59,133.53,18.85097576]
[1750543518497,18.85097576,133.58,133.52,37.01328012]
[1750543518674,18.85097576,133.57,133.52,36.31328012]
[1750543518879,18.85097576,133.57,133.53,19.55097576]
[1750543519085,18.85097576,133.58,133.54,18.85097576]
[1750543519394,1.6260325,133.61,133.55,44.85097576]
[1750543519581,18.85097576,133.59,133.55,44.85097576]
[1750543520100,18.85097576,133.58,133.55,26.0]
[1750543520796,18.85097576,133.58,133.56,7.48727163]
[1750543522192,18.85097576,133.57,133.53,7.48895379]
[1750543522693,18.85097576,133.57,133.53,8.18895379]
[1750543522869,0.72,133.59,133.53,27.03992955]
[1750543523074,18.85097576,133.57,133.53,27.03992955]
[1750543524300,0.72,133.59,133.53,45.76231403]
[1750543524477,18.85097576,133.58,133.53,45.76231403]
[1750543526299,0.72,133.59,133.53,45.76231403]
[1750543526476,0.72,133.59,133.54,19.55097576]
[1750543526686,18.85097576,133.58,133.54,19.55097576]
[1750543527508,18.85097576,133.59,133.54,19.55097576]
[1750543528502,18.85097576,133.59,133.55,7.48783227]
[1750543528993,18.85097576,133.58,133.55,7.48783227]
[1750543529601,28.48017694,133.61,133.55,7.48783227]
[1750543529896,18.85097576,133.58,133.55,7.48783227]
[1750543530992,18.85097576,133.57,133.55,7.48783227]
[1750543531498,0.72,133.6,133.55,26.90741295]
[1750543531702,20.27568136,133.61,133.56,18.85097576]
[1750543531703,1.6260325,133.61,133.56,18.85097576]
[1750543531884,1.6260325,133.61,133.58,26.0]
[1750543532201,1.6260325,133.61,133.58,44.85097576]
[1750543532374,1.6260325,133.61,133.6,18.85097576]
[1750543532579,1.6260325,133.61,133.6,26.3360057]
[1750543532802,1.6260325,133.61,133.6,7.48502994]
[1750543534903,1.6260325,133.61,133.59,7.48559023]
[1750543536214,20.47700826,133.61,133.59,7.48559023]
[1750543536503,20.47700826,133.61,133.58,33.48600791]
[1750543536504,21.19700826,133.61,133.58,33.48600791]
[1750543536711,18.85097576,133.59,133.58,7.48600791]
[1750543536889,18.85097576,133.59,133.55,43.96193907]
[1750543536890,18.85097576,133.59,133.56,7.48674138]
[1750543537083,18.85097576,133.58,133.56,7.48674138]
[1750543538087,19.57097576,133.59,133.56,7.48674138]
[1750543538284,18.85097576,133.58,133.55,7.48783227]
[1750543538488,18.85097576,133.57,133.54,7.48822464]
[1750543538704,3.9453325,133.61,133.55,18.85097576]
[1750543538906,18.85097576,133.6,133.55,19.55097576]
[1750543539985,21.19700826,133.61,133.56,18.85097576]
[1750543540212,2.3460325,133.61,133.57,7.48671108]
[1750543540508,1.6260325,133.61,133.58,18.85097576]
[1750543540886,1.6260325,133.61,133.59,19.55097576]
[1750543541805,1.6260325,133.61,133.6,44.85097576]
[1750543542110,1.6260325,133.61,133.6,45.58097576]
[1750543542421,1.6260325,133.61,133.6,53.0660057]
[1750543542720,1.6260325,133.61,133.6,52.3360057]
[1750543543227,1.6260325,133.61,133.6,53.0660057]
[1750543546625,1.6260325,133.61,133.6,100.30663032]
[1750543546792,19.55097576,133.71,133.64,26.0]
[1750543546990,18.85097576,133.71,133.67,18.85097576]
[1750543547206,19.55097576,133.71,133.66,18.85097576]
[1750543547908,0.7,133.71,133.66,18.85097576]
[1750543548214,19.55097576,133.71,133.66,18.85097576]
[1750543548410,19.55097576,133.7,133.67,7.48111019]
[1750543548607,19.34964886,133.66,133.6,9.74]
[1750543548792,18.85097576,133.61,133.56,19.58097576]
[1750543549121,18.85097576,133.58,133.56,7.48716714]
[1750543549703,18.85097576,133.58,133.54,9.74]
[1750543550014,18.85097576,133.55,133.54,9.74]
[1750543550215,19.34964886,133.59,133.54,9.74]
[1750543550216,18.85097576,133.56,133.54,9.74]
[1750543550526,18.85097576,133.56,133.53,7.48876638]
[1750543551019,18.85097576,133.55,133.53,7.48876638]
[1750543551604,18.85097576,133.58,133.53,26.33974214]
[1750543551919,1.5061,133.6,133.54,18.85097576]
[1750543552125,20.35707576,133.6,133.55,18.85097576]
[1750543552298,18.85097576,133.6,133.56,26.33824739]
[1750543552503,18.85097576,133.62,133.58,18.85097576]
[1750543552702,20.35707576,133.63,133.58,18.85097576]
[1750543553534,1.5061,133.63,133.6,18.85097576]
[1750543553722,18.85097576,133.64,133.6,18.85097576]
[1750543553916,18.85097576,133.64,133.59,44.85097576]
[1750543554116,0.7,133.65,133.59,26.0]
[1750543554322,18.85097576,133.64,133.6,7.48502994]
[1750543554522,18.85097576,133.64,133.6,26.3360057]
[1750543554728,1.5664,133.7,133.63,44.85097576]
[1750543554905,1.5664,133.7,133.65,18.85097576]
[1750543555104,21.11737576,133.7,133.63,26.0]
[1750543555315,2.2664,133.7,133.63,26.0]
[1750543555516,18.85097576,133.68,133.63,44.85097576]
[1750543555922,19.55097576,133.68,133.63,26.0]
[1750543556231,0.7,133.67,133.61,18.85097576]
[1750543556418,18.85097576,133.66,133.62,7.48390959]
[1750543556613,18.85097576,133.66,133.62,26.33488535]
[1750543557625,18.85097576,133.66,133.62,7.48390959]
[1750543558426,0.7,133.67,133.62,26.33488535]
[1750543558622,18.85097576,133.66,133.62,26.33488535]
[1750543560409,20.41737576,133.7,133.65,44.85097576]
[1750543560758,0.7,133.72,133.67,18.85097576]
[1750543560937,18.85097576,133.7,133.65,26.0]
[1750543561134,18.85097576,133.69,133.65,44.85097576]
[1750543561515,18.85097576,133.71,133.66,18.85097576]
[1750543561913,18.85097576,133.71,133.65,26.0]
[1750543562232,18.85097576,133.7,133.66,18.85097576]
[1750543562426,18.85097576,133.7,133.67,7.48111019]
[1750543562932,18.85097576,133.69,133.67,7.48111019]
[1750543563106,26.12769028,133.73,133.67,7.48111019]
[1750543563306,18.85097576,133.7,133.67,7.48111019]
[1750543563534,18.85097576,133.69,133.67,7.48111019]
[1750543563920,18.85097576,133.68,133.62,6.3609]
[1750543564234,18.85097576,133.66,133.62,26.33488535]
[1750543564817,18.64964886,133.68,133.62,26.33488535]
[1750543564818,18.85097576,133.67,133.62,26.33488535]
[1750543565950,18.85097576,133.66,133.62,26.33488535]
[1750543566118,18.85097576,133.66,133.62,7.48390959]
[1750543566317,18.85097576,133.67,133.62,26.33488535]
[1750543566821,18.85097576,133.66,133.62,7.48390959]
[1750543567325,0.7,133.69,133.62,26.33488535]
[1750543567529,18.85097576,133.68,133.65,7.4822297]
[1750543568217,18.85097576,133.69,133.65,7.4822297]
[1750543568427,18.85097576,133.69,133.65,26.33320546]
[1750543568622,18.85097576,133.69,133.65,7.4822297]
[1750543568927,18.85097576,133.68,133.65,7.4822297]
[1750543569721,0.7,133.71,133.65,7.4822297]
[1750543569938,18.85097576,133.69,133.65,7.4822297]
[1750543570327,18.85097576,133.68,133.65,7.4822297]
[1750543570641,18.85097576,133.67,133.65,7.4822297]
[1750543570944,18.85097576,133.67,133.64,26.0]
[1750543571143,18.85097576,133.66,133.62,7.48390959]
[1750543571440,18.85097576,133.65,133.62,7.48390959]
[1750543571621,18.85097576,133.65,133.6,26.8875766]
[1750543571828,18.85097576,133.65,133.63,26.0]
[1750543572225,2.3513,133.67,133.63,26.0]
[1750543572433,7.48013242,133.69,133.63,26.0]
[1750543572434,18.85097576,133.69,133.64,19.54097576]
[1750543572744,18.85097576,133.68,133.64,19.54097576]
[1750543572943,18.85097576,133.68,133.64,0.69]
[1750543573126,18.85097576,133.68,133.63,44.85097576]
[1750543573437,18.85097576,133.66,133.65,26.0]
[1750543573829,18.85097576,133.66,133.62,18.85097576]
[1750543574031,18.85097576,133.66,133.61,45.54097576]
[1750543574234,18.85097576,133.66,133.61,19.54097576]
[1750543574435,0.74,133.66,133.59,6.3609]
[1750543574648,18.64964886,133.69,133.6,27.0260057]
[1750543574956,18.85097576,133.67,133.63,18.85097576]
[1750543576136,18.85097576,133.67,133.64,7.48278958]
[1750543577333,18.85097576,133.67,133.63,7.48334954]
[1750543577643,18.85097576,133.67,133.63,26.3343253]
[1750543577847,19.38964886,133.69,133.63,26.3343253]
[1750543578146,18.85097576,133.68,133.64,18.85097576]
[1750543578368,18.85097576,133.69,133.65,0.69]
[1750543578556,18.85097576,133.69,133.65,19.54097576]
[1750543578935,37.50062462,133.7,133.65,19.54097576]
[1750543579164,18.85097576,133.7,133.66,18.85097576]
[1750543579452,20.46227576,133.71,133.67,7.48111019]
[1750543580155,18.85097576,133.71,133.67,7.48111019]
[1750543580732,2.3231,133.74,133.68,18.85097576]
[1750543580962,1.5831,133.74,133.68,18.85097576]
[1750543581248,21.88262268,133.77,133.72,18.85097576]
[1750543581249,2.3231,133.77,133.72,18.85097576]
[1750543581440,18.85097576,133.76,133.73,7.47775368]
[1750543582164,9.23628694,133.78,133.75,18.85097576]
[1750543582338,9.23628694,133.78,133.73,33.06353788]
[1750543582339,18.85097576,133.81,133.77,18.85097576]
[1750543582857,18.85097576,133.81,133.76,44.85097576]
[1750543583282,18.85097576,133.81,133.76,45.54097576]
[1750543583462,18.85097576,133.81,133.78,7.47495888]
[1750543583857,18.85097576,133.82,133.78,7.47495888]
[1750543584052,18.85097576,133.82,133.77,26.3263661]
[1750543584360,18.85097576,133.81,133.77,26.3263661]
[1750543584933,5.3655989,133.84,133.78,19.54097576]
[1750543585157,5.3655989,133.84,133.8,18.85097576]
[1750543585352,18.85097576,133.83,133.78,0.69]
[1750543585545,18.85097576,133.83,133.8,7.47384155]
[1750543586062,0.74,133.81,133.77,26.0]
[1750543586357,18.85097576,133.8,133.76,18.85097576]
[1750543586759,18.85097576,133.8,133.73,23.9686167]
[1750543586760,18.85097576,133.78,133.73,23.9686167]
[1750543586939,18.85097576,133.77,133.73,42.12959246]
[1750543587570,18.85097576,133.77,133.73,23.2786167]
[1750543588076,18.85097576,133.74,133.73,9.6]
[1750543588581,0.74,133.76,133.73,9.6]
[1750543588760,18.85097576,133.74,133.73,9.6]
[1750543588955,0.74,133.76,133.73,9.6]
[1750543589172,18.85097576,133.75,133.73,9.6]
[1750543589681,18.85097576,133.76,133.73,17.07759916]
[1750543589854,18.85097576,133.74,133.73,9.6]
[1750543591052,33.47571863,133.77,133.71,7.47843426]
[1750543591252,18.85097576,133.74,133.71,7.47843426]
[1750543591776,33.47571863,133.77,133.71,7.47843426]
[1750543591985,18.85097576,133.74,133.71,7.47843426]
[1750543592472,18.85097576,133.73,133.69,7.47992617]
[1750543592671,18.85097576,133.73,133.69,27.02090193]
[1750543592875,18.85097576,133.71,133.68,7.48040646]
[1750543593076,33.47733356,133.74,133.68,7.48040646]
[1750543593272,18.85097576,133.71,133.68,7.48040646]
[1750543595382,18.85097576,133.7,133.67,17.0810494]
[1750543595762,18.64964886,133.72,133.67,17.0810494]
[1750543595970,18.85097576,133.7,133.67,17.0810494]
[1750543596174,18.85097576,133.7,133.67,9.6]
[1750543596479,18.85097576,133.68,133.67,9.6]
[1750543599276,18.85097576,133.68,133.64,7.48278958]
[1750543600185,18.85097576,133.68,133.64,27.02376534]
[1750543600361,18.85097576,133.67,133.64,8.17278958]
[1750543600762,18.85097576,133.66,133.64,7.48278958]
[1750543601080,18.85097576,133.66,133.63,7.48328426]
[1750543601481,0.74,133.69,133.63,7.48328426]
[1750543601671,18.85097576,133.69,133.64,18.85097576]
[1750543601869,28.50604112,133.72,133.69,0.74]
[1750543601870,18.85097576,133.72,133.69,0.74]
[1750543602184,18.85097576,133.75,133.7,19.59097576]
[1750543602355,18.85097576,133.75,133.71,18.85097576]
[1750543602557,18.85097576,133.75,133.71,19.59097576]
[1750543602958,20.41187576,133.76,133.71,19.59097576]
[1750543603182,9.78430475,133.81,133.75,7.47663551]
[1750543603382,18.85097576,133.78,133.74,26.32795824]
[1750543603584,18.64964886,133.8,133.74,26.32795824]
[1750543603886,18.85097576,133.78,133.74,26.32795824]
[1750543604785,18.85097576,133.79,133.74,26.32795824]
[1750543605285,18.85097576,133.79,133.75,7.47615132]
[1750543605473,18.85097576,133.77,133.73,7.47775368]
[1750543605673,18.85097576,133.76,133.72,7.47817768]
[1750543605874,18.85097576,133.76,133.72,26.0]
[1750543606066,18.85097576,133.76,133.71,52.32965457]
[1750543606266,18.85097576,133.76,133.71,53.06965457]
[1750543607278,18.85097576,133.76,133.71,34.21867881]
[1750543607475,7.47580352,133.77,133.71,53.06965457]
[1750543607685,18.85097576,133.75,133.71,33.47867881]
[1750543607982,0.75,133.76,133.71,33.47867881]
[1750543608286,18.85097576,133.74,133.71,33.47867881]
[1750543608488,18.85097576,133.74,133.68,28.30039074]
[1750543608489,18.85097576,133.72,133.68,9.6]
[1750543608690,18.85097576,133.71,133.68,9.6]
[1750543608985,18.85097576,133.71,133.68,35.6]
[1750543609691,18.85097576,133.71,133.69,7.47984076]
[1750543611785,18.85097576,133.73,133.69,8.21984076]
[1750543611995,18.85097576,133.74,133.7,19.59097576]
[1750543612170,18.85097576,133.75,133.71,0.74]
[1750543612582,18.85097576,133.74,133.71,0.74]
[1750543612972,18.85097576,133.74,133.72,7.47831289]
[1750543613890,43.46515136,133.78,133.72,7.47831289]
[1750543613891,18.85097576,133.75,133.72,7.47831289]
[1750543614483,18.85097576,133.74,133.72,7.47831289]
[1750543616090,18.85097576,133.74,133.71,7.47887218]
[1750543616492,18.85097576,133.74,133.7,26.0]
[1750543616493,18.85097576,133.73,133.7,33.47930341]
[1750543618267,0.75,133.75,133.7,33.47930341]
[1750543618495,18.85097576,133.74,133.7,53.07027917]
[1750543619688,18.85097576,133.74,133.7,34.21930341]
[1750543620400,0.75,133.77,133.71,18.85097576]
[1750543620578,18.85097576,133.75,133.7,52.91788231]
[1750543620782,7.47508757,133.78,133.7,71.76885807]
[1750543620966,19.60097576,133.71,133.66,14.08937518]
[1750543621166,19.60097576,133.71,133.64,1.6118]
[1750543621167,18.85097576,133.68,133.64,18.85097576]
[1750543621392,18.85097576,133.68,133.65,0.74]
[1750543621605,18.85097576,133.68,133.67,26.0]
[1750543621911,18.85097576,133.7,133.67,33.48111019]
[1750543622475,18.85097576,133.7,133.67,34.22111019]
[1750543622800,18.85097576,133.71,133.67,34.22111019]
[1750543623106,18.85097576,133.68,133.63,7.48334954]
[1750543623402,1.5193,133.74,133.63,7.48334954]
[1750543623403,18.85097576,133.66,133.63,7.48334954]
[1750543623696,18.64964886,133.69,133.63,33.48334954]
[1750543623880,26.17216653,133.73,133.67,7.48111019]
[1750543623881,18.85097576,133.71,133.67,7.48111019]
[1750543624194,18.85097576,133.7,133.67,7.48111019]
[1750543624401,18.85097576,133.71,133.67,7.48111019]
[1750543625091,27.64634985,133.74,133.7,26.0]
[1750543625092,1.5193,133.74,133.7,26.0]
[1750543625276,18.85097576,133.73,133.7,26.0]
[1750543626772,18.85097576,133.74,133.7,26.0]
[1750543627107,18.85097576,133.74,133.71,7.47887218]
[1750543627289,18.85097576,133.73,133.71,7.47887218]
[1750543627613,18.85097576,133.72,133.7,33.47927234]
[1750543627901,18.85097576,133.71,133.7,33.47927234]
[1750543628506,18.85097576,133.72,133.7,33.47927234]
[1750543631725,18.85097576,133.73,133.7,33.47927234]
[1750543631901,18.85097576,133.72,133.7,33.47927234]
[1750543632099,18.85097576,133.72,133.7,26.0]
[1750543632489,18.85097576,133.72,133.7,33.47940024]
[1750543632907,18.85097576,133.72,133.67,38.29375125]
[1750543632908,19.59097576,133.72,133.68,26.0]
[1750543633403,18.85097576,133.72,133.68,26.0]
[1750543634509,18.85097576,133.72,133.68,33.48055056]
[1750543635296,8.21685868,133.75,133.68,33.48055056]
[1750543635512,18.85097576,133.72,133.68,33.48055056]
[1750543635711,18.85097576,133.72,133.68,52.33152632]
[1750543636293,0.74,133.75,133.68,52.33152632]
[1750543636605,18.85097576,133.73,133.68,52.33152632]
[1750543636814,18.85097576,133.72,133.68,52.33152632]
[1750543637889,18.64964886,133.74,133.68,52.33152632]
[1750543638089,18.85097576,133.72,133.68,33.48055056]
[1750543639212,19.59097576,133.69,133.65,7.48200411]
[1750543639394,18.85097576,133.67,133.64,7.48257648]
[1750543639588,18.85097576,133.66,133.64,7.48257648]
[1750543639788,18.85097576,133.67,133.64,7.48257648]
[1750543640221,18.85097576,133.66,133.64,7.48257648]
[1750543640393,18.85097576,133.67,133.64,7.48257648]
[1750543641316,0.74,133.69,133.64,8.19257648]
[1750543641505,0.74,133.69,133.65,19.56097576]
[1750543641506,18.85097576,133.69,133.65,19.56097576]
[1750543642126,18.85097576,133.69,133.66,7.4816699]
[1750543642804,1.5386,133.71,133.64,33.48278958]
[1750543642805,18.85097576,133.67,133.64,33.48278958]
[1750543643113,18.85097576,133.68,133.64,71.75073929]
[1750543643718,18.85097576,133.69,133.65,0.71]
[1750543644230,18.85097576,133.7,133.66,27.04264566]
[1750543644600,18.85097576,133.71,133.66,27.04264566]
[1750543645002,18.85097576,133.71,133.67,19.56097576]
[1750543645519,18.85097576,133.73,133.68,19.56097576]
[1750543645733,36.5586,133.74,133.68,0.71]
[1750543645913,36.5586,133.74,133.66,26.18584467]
[1750543645914,18.85097576,133.7,133.66,7.4816699]
[1750543647418,26.86776291,133.73,133.66,7.4816699]
[1750543647619,19.38964886,133.73,133.67,18.85097576]
[1750543647827,18.85097576,133.72,133.67,18.85097576]
[1750543648028,18.85097576,133.72,133.67,19.56097576]
[1750543648517,18.85097576,133.72,133.68,7.48055056]
[1750543648899,19.59097576,133.72,133.68,7.48055056]
[1750543649097,18.85097576,133.71,133.68,7.48055056]
[1750543649291,0.74,133.72,133.68,7.48055056]
[1750543649497,18.85097576,133.69,133.66,7.4816699]
[1750543651002,18.64964886,133.71,133.66,7.4816699]
[1750543651324,18.85097576,133.7,133.66,45.74682043]
[1750543651635,0.74,133.73,133.66,64.30419421]
[1750543651805,18.64964886,133.75,133.7,18.85097576]
[1750543652007,18.85097576,133.75,133.7,18.85097576]
[1750543652206,19.59097576,133.76,133.71,19.56097576]
[1750543652821,18.85097576,133.76,133.72,45.73507088]
[1750543653025,18.85097576,133.74,133.72,26.17409512]
[1750543653324,0.74,133.76,133.72,26.17409512]
[1750543653325,18.85097576,133.75,133.72,26.17409512]
[1750543655126,18.85097576,133.76,133.72,45.73507088]
[1750543657031,18.85097576,133.76,133.72,26.88409512]
[1750543657331,18.85097576,133.76,133.72,45.73507088]
[1750543659515,18.85097576,133.77,133.72,45.73507088]
[1750543660611,18.85097576,133.79,133.75,44.85097576]
[1750543660832,18.85097576,133.81,133.77,18.85097576]
[1750543661032,18.85097576,133.81,133.78,26.16235609]
[1750543662235,18.85097576,133.8,133.78,26.16235609]
[1750543662612,0.74,133.81,133.78,26.16235609]
[1750543662812,18.85097576,133.8,133.78,26.16235609]
[1750543663021,19.59097576,133.81,133.78,18.68739721]
[1750543663540,41.9074989,133.84,133.78,18.68739721]
[1750543663541,7.0074989,133.84,133.78,18.68739721]
[1750543663835,18.85097576,133.83,133.79,18.85097576]
[1750543664013,24.21657466,133.84,133.79,18.85097576]
[1750543664213,24.21657466,133.84,133.79,19.55097576]
[1750543664422,18.85097576,133.83,133.79,19.55097576]
[1750543665146,18.85097576,133.83,133.8,26.15844543]
[1750543666027,5.3655989,133.84,133.8,26.15844543]
[1750543666440,24.21657466,133.84,133.8,26.15844543]
[1750543666918,18.85097576,133.83,133.8,26.15844543]
[1750543668916,11.27102136,133.83,133.8,18.68460388]
[1750543669731,11.27102136,133.83,133.8,19.38460388]
[1750543669933,11.27102136,133.83,133.8,26.85844543]
[1750543670635,5.3655989,133.84,133.82,11.97102136]
[1750543670815,5.3655989,133.84,133.83,0.7]
[1750543671017,5.3655989,133.84,133.83,44.05142136]
[1750543671939,1.6260325,133.88,133.83,107.56483389]
[1750543672140,1.6260325,133.88,133.87,11.27102136]
[1750543672540,1.6260325,133.88,133.86,37.27102136]
[1750543672842,1.6260325,133.88,133.86,45.4633395]
[1750543674022,1.6260325,133.88,133.87,7.46993351]
[1750543674622,1.6260325,133.88,133.87,26.93327301]
[1750543675037,0.6260325,133.88,133.87,26.93327301]
[1750543675226,19.24027732,134.01,133.91,6.0804]
[1750543675227,0.74,133.99,133.91,6.0804]
[1750543675427,18.7633395,133.98,133.93,18.7633395]
[1750543675621,0.74,133.99,133.91,6.0804]
[1750543675622,0.74,133.99,133.95,18.7633395]
[1750543675829,18.7633395,133.98,133.94,44.7633395]
[1750543676041,19.5033395,133.98,133.95,26.12915266]
[1750543676343,0.74,133.98,133.95,26.12915266]
[1750543676525,19.5033395,133.98,133.95,26.12915266]
[1750543676946,37.41298836,134.0,133.95,44.89249216]
[1750543677248,18.7633395,134.02,133.98,44.7633395]
[1750543677632,18.64964886,134.03,133.98,44.7633395]
[1750543677944,18.7633395,134.02,133.99,26.12135233]
[1750543678142,0.74,134.02,133.99,26.12135233]
[1750543678346,1.71625311,134.06,133.99,26.12135233]
[1750543678522,18.7633395,134.04,134.0,18.7633395]
[1750543678722,19.5033395,134.01,133.99,26.12135233]
[1750543678949,18.7633395,134.01,133.99,26.12135233]
[1750543679157,0.74,134.04,133.99,44.88469183]
[1750543679339,19.5033395,134.04,134.0,18.7633395]
[1750543679944,19.73959261,134.06,134.02,44.7633395]
[1750543680247,0.97625311,134.06,134.02,44.7633395]
[1750543680621,0.97625311,134.06,133.99,69.88256995]
[1750543680622,0.74,134.02,133.99,26.12135233]
[1750543680893,18.64964886,134.05,133.99,26.12135233]
[1750543680894,0.74,134.04,133.99,26.12135233]
[1750543681046,18.7633395,134.05,134.0,44.7633395]
[1750543681341,0.97625311,134.06,134.03,26.0]
[1750543681545,0.97625311,134.06,134.04,18.7633395]
[1750543681718,0.97625311,134.06,134.05,18.7633395]
[1750543681922,0.97625311,134.06,134.05,7.45990302]
[1750543682567,0.47625311,134.06,134.05,15.48250302]
[1750543682737,1.6260325,134.15,134.08,35.97246182]
[1750543682738,1.2260325,134.15,134.08,35.97246182]
[1750543683052,8.70011724,134.29,134.08,35.97246182]
[1750543683053,6.6044,134.31,134.17,26.0]
[1750543683261,11.58122133,134.36,134.3,26.0]
[1750543683262,10.84122133,134.36,134.3,26.0]
[1750543683563,1.6260325,134.41,134.34,26.0]
[1750543683564,0.74,134.38,134.34,26.0]
[1750543683720,7.30366276,134.46,134.35,18.7633395]
[1750543683927,11.15539104,134.48,134.35,26.05135838]
[1750543684139,10.0,134.48,134.36,18.7633395]
[1750543684345,18.7633395,134.44,134.38,18.7633395]
[1750543684652,10.0,134.49,134.39,9.24]
[1750543684976,10.0,134.5,134.39,9.24]
[1750543685141,10.0,134.5,134.4,9.24]
[1750543685340,25.93214676,134.43,134.38,25.93214676]
[1750543685641,25.93214676,134.42,134.35,89.26758465]
[1750543685835,10.0,134.47,134.37,25.93214676]
[1750543686142,25.93214676,134.38,134.35,26.05135838]
[1750543686344,26.0,134.39,134.35,7.44324525]
[1750543686545,25.93214676,134.38,134.35,7.44324525]
[1750543686862,26.0,134.39,134.31,25.93214676]
[1750543686863,0.74,134.36,134.31,25.93214676]